fUSD/lending_fUSD_20250609
["ID","MTS","AMOUNT","RATE_DAILY","PERIOD"]
[365108375,1749467462274,-480.0,0.00030136,2]
[365108376,1749467462284,-480.0,0.00030136,2]
[365108377,1749467462294,-480.0,0.00030136,2]
[365108378,1749467462303,-1390.49,0.00030136,2]
[365108379,1749467462313,-666.6,0.00030136,2]
[365108380,1749467462323,-480.0,0.00030136,2]
[365108381,1749467462332,-480.0,0.00030136,2]
[365108382,1749467462342,-480.0,0.00030136,2]
[365108383,1749467462352,-590.55,0.00030136,2]
[365108384,1749467462362,-480.0,0.00030136,2]
[365108385,1749467462371,-483.01,0.00030136,2]
[365108386,1749467462381,-480.0,0.00030136,2]
[365108387,1749467462391,-1003.98,0.00030136,2]
[365108388,1749467462401,-480.0,0.00030136,2]
[365108389,1749467462410,-480.0,0.00030136,2]
[365108390,1749467462420,-480.0,0.00030136,2]
[365108391,1749467462429,-480.0,0.00030136,2]
[365108392,1749467462439,-480.0,0.00030136,2]
[365108393,1749467462449,-480.0,0.00030136,2]
[365108394,1749467462459,-1548.57,0.00030136,2]
[365108395,1749467462468,-480.0,0.00030136,2]
[365108396,1749467462478,-1152.84,0.00030136,2]
[365108397,1749467462488,-480.0,0.00030136,2]
[365108398,1749467462498,-480.0,0.00030136,2]
[365108399,1749467462509,-480.0,0.00030136,2]
[365108400,1749467462519,-868.27,0.00030136,2]
[365108401,1749467462528,-480.0,0.00030136,2]
[365108402,1749467462538,-250.0,0.00030136,2]
[365108403,1749467462547,-658.72,0.00030136,2]
[365108404,1749467462558,-712.4,0.00030136,2]
[365108405,1749467462568,-480.0,0.00030136,2]
[365108406,1749467462579,-1162.05,0.00030136,2]
[365108407,1749467462589,-480.0,0.00030136,2]
[365108408,1749467462599,-681.29,0.00030136,2]
[365108409,1749467462609,-480.0,0.00030136,2]
[365108410,1749467462622,-500.75791653,0.00030136,2]
[365108411,1749467462632,-510.63642777,0.00030136,2]
[365108412,1749467462642,-480.0,0.00030136,2]
[365108413,1749467462652,-480.0,0.00030136,2]
[365108414,1749467462663,-480.0,0.00030136,2]
[365108415,1749467462673,-480.0,0.00030136,2]
[365108416,1749467462684,-1413.78,0.00030136,2]
[365108417,1749467462693,-480.0,0.00030136,2]
[365108418,1749467462703,-767.19,0.00030136,2]
[365108419,1749467462713,-1260.16,0.00030136,2]
[365108420,1749467462722,-480.0,0.00030136,2]
[365108421,1749467462732,-809.2,0.00030136,2]
[365108422,1749467462741,-480.0,0.00030136,2]
[365108423,1749467462752,-419.21696404,0.00030136,2]
[365108424,1749467462762,-571.84,0.00030136,2]
[365108425,1749467462772,-480.0,0.00030136,2]
[365108426,1749467462782,-572.83,0.00030136,2]
[365108427,1749467462792,-480.0,0.00030136,2]
[365108428,1749467462801,-480.0,0.00030136,2]
[365108429,1749467462811,-480.0,0.00030136,2]
[365108430,1749467462821,-889.69,0.00030136,2]
[365108431,1749467462831,-480.0,0.00030136,2]
[365108432,1749467462840,-480.0,0.00030136,2]
[365108433,1749467462850,-480.0,0.00030136,2]
[365108434,1749467462859,-1751.09,0.00030136,2]
[365108435,1749467462869,-714.09,0.00030136,2]
[365108436,1749467462881,-480.0,0.00030136,2]
[365108437,1749467462891,-603.4,0.00030136,2]
[365108438,1749467462901,-480.0,0.00030136,2]
[365108439,1749467462911,-993.71,0.00030136,2]
[365108440,1749467462921,-480.0,0.00030136,2]
[365108441,1749467462931,-480.0,0.00030136,2]
[365108442,1749467462940,-270.99641794,0.00030136,2]
[365108443,1749467462950,-480.0,0.00030136,2]
[365108444,1749467462959,-480.0,0.00030136,2]
[365108445,1749467462969,-480.0,0.00030136,2]
[365108446,1749467462979,-1195.03,0.00030136,2]
[365108447,1749467462989,-480.0,0.00030136,2]
[365108448,1749467462998,-480.0,0.00030136,2]
[365108449,1749467463008,-1015.33,0.00030136,2]
[365108450,1749467463018,-480.0,0.00030136,2]
[365108451,1749467463028,-480.0,0.00030136,2]
[365108452,1749467463037,-726.34,0.00030136,2]
[365108453,1749467463047,-480.0,0.00030136,2]
[365108454,1749467463058,-483.51,0.00030136,2]
[365108455,1749467463068,-572.87,0.00030136,2]
[365108456,1749467463078,-1308.47,0.00030136,2]
[365108457,1749467463087,-768.64,0.00030136,2]
[365108458,1749467463097,-590.83,0.00030136,2]
[365108459,1749467463107,-480.0,0.00030136,2]
[365108460,1749467463116,-484.49,0.00030136,2]
[365108461,1749467463126,-480.0,0.00030136,2]
[365108462,1749467463136,-480.0,0.00030136,2]
[365108463,1749467463147,-480.0,0.00030136,2]
[365108464,1749467463158,-300.0,0.00030136,2]
[365108465,1749467463170,-509.09,0.00030136,2]
[365108466,1749467463180,-480.0,0.00030136,2]
[365108467,1749467463190,-480.0,0.00030136,2]
[365108468,1749467463200,-528.30129919,0.00030136,2]
[365108469,1749467463210,-480.0,0.00030136,2]
[365108470,1749467463220,-1082.46,0.00030136,2]
[365108471,1749467463229,-1180.2,0.00030136,2]
[365108472,1749467463239,-613.24,0.00030136,2]
[365108473,1749467463250,-553.03,0.00030136,2]
[365108474,1749467463259,-480.0,0.00030136,2]
[365108475,1749467463269,-480.0,0.00030136,2]
[365108476,1749467463279,-1162.79,0.00030136,2]
[365108477,1749467463288,-480.0,0.00030136,2]
[365108478,1749467463298,-480.0,0.00030136,2]
[365108479,1749467463309,-480.0,0.00030136,2]
[365108480,1749467463319,-480.0,0.00030136,2]
[365108481,1749467463328,-480.0,0.00030136,2]
[365108482,1749467463338,-1574.4,0.00030136,2]
[365108483,1749467463348,-1404.78,0.00030136,2]
[365108484,1749467463358,-480.0,0.00030136,2]
[365108485,1749467463368,-480.0,0.00030136,2]
[365108486,1749467463378,-480.0,0.00030136,2]
[365108487,1749467463387,-553.5,0.00030136,2]
[365108488,1749467463397,-595.47,0.00030136,2]
[365108489,1749467463407,-480.0,0.00030136,2]
[365108490,1749467463418,-480.0,0.00030136,2]
[365108491,1749467463427,-480.0,0.00030136,2]
[365108492,1749467463437,-480.0,0.00030136,2]
[365108493,1749467463447,-1368.39,0.00030136,2]
[365108494,1749467463457,-480.0,0.00030136,2]
[365108495,1749467463467,-480.0,0.00030136,2]
[365108496,1749467463476,-480.0,0.00030136,2]
[365108497,1749467463486,-342.31728185,0.00030136,2]
[365108498,1749467463496,-507.47,0.00030136,2]
[365108499,1749467463506,-296.22743202,0.00030136,2]
[365108500,1749467463594,-672.49,0.00030136,2]
[365108501,1749467463604,-480.0,0.00030136,2]
[365108502,1749467463614,-484.35,0.00030136,2]
[365108503,1749467463626,-480.0,0.00030136,2]
[365108504,1749467463636,-480.0,0.00030136,2]
[365108505,1749467463646,-750.53,0.00030136,2]
[365108506,1749467463655,-683.08,0.00030136,2]
[365108507,1749467463665,-480.0,0.00030136,2]
[365108508,1749467463675,-440.67041231,0.00030136,2]
[365108509,1749467463684,-678.54,0.00030136,2]
[365108510,1749467463693,-480.0,0.00030136,2]
[365108511,1749467463703,-480.0,0.00030136,2]
[365108512,1749467463712,-480.0,0.00030136,2]
[365108513,1749467463722,-516.27,0.00030136,2]
[365108514,1749467463732,-618.68,0.00030136,2]
[365108515,1749467463742,-480.0,0.00030136,2]
[365108516,1749467463752,-480.0,0.00030136,2]
[365108517,1749467463762,-1596.5,0.00030136,2]
[365108518,1749467463772,-480.0,0.00030136,2]
[365108519,1749467463781,-413.59364812,0.00030136,2]
[365108520,1749467463791,-963.2,0.00030136,2]
[365108521,1749467463801,-751.13,0.00030136,2]
[365108522,1749467463811,-480.0,0.00030136,2]
[365108523,1749467463821,-480.0,0.00030136,2]
[365108524,1749467463830,-480.0,0.00030136,2]
[365108525,1749467463840,-480.0,0.00030136,2]
[365108526,1749467463850,-480.0,0.00030136,2]
[365108527,1749467463859,-701.92,0.00030136,2]
[365108528,1749467463870,-480.0,0.00030136,2]
[365108529,1749467463881,-480.0,0.00030136,2]
[365108530,1749467463891,-480.0,0.00030136,2]
[365108531,1749467463900,-571.45,0.00030136,2]
[365108532,1749467463911,-480.0,0.00030136,2]
[365108533,1749467463921,-985.49,0.00030136,2]
[365108534,1749467463931,-848.03,0.00030136,2]
[365108535,1749467463941,-812.41,0.00030136,2]
[365108536,1749467463951,-480.0,0.00030136,2]
[365108537,1749467463962,-480.0,0.00030136,2]
[365108538,1749467463973,-480.0,0.00030136,2]
[365108539,1749467463982,-694.25,0.00030136,2]
[365108540,1749467463993,-607.16,0.00030136,2]
[365108541,1749467464002,-1593.32,0.00030136,2]
[365108542,1749467464012,-480.0,0.00030136,2]
[365108543,1749467464022,-480.0,0.00030136,2]
[365108544,1749467464032,-929.53,0.00030136,2]
[365108545,1749467464043,-480.0,0.00030136,2]
[365108546,1749467464054,-419.4912538,0.00030136,2]
[365108547,1749467464065,-480.0,0.00030136,2]
[365108548,1749467464076,-150.16365202,0.00030136,2]
[365108549,1749467464086,-500.0,0.00030136,2]
[365108550,1749467464097,-480.0,0.00030136,2]
[365108551,1749467464107,-480.0,0.00030136,2]
[365108552,1749467464117,-778.0,0.00030136,2]
[365108553,1749467464128,-775.36,0.00030136,2]
[365108554,1749467464140,-480.0,0.00030136,2]
[365108555,1749467464151,-914.16,0.00030136,2]
[365108556,1749467464164,-525.31,0.00030136,2]
[365108557,1749467464176,-480.0,0.00030136,2]
[365108558,1749467464188,-665.27,0.00030136,2]
[365108559,1749467464199,-480.0,0.00030136,2]
[365108560,1749467464211,-746.05,0.00030136,2]
[365108561,1749467464221,-820.23,0.00030136,2]
[365108562,1749467464232,-2259.36,0.00030136,2]
[365108563,1749467464244,-480.0,0.00030136,2]
[365108564,1749467464254,-1295.49,0.00030136,2]
[365108565,1749467464265,-480.0,0.00030136,2]
[365108566,1749467464276,-382.74147213,0.00030136,2]
[365108567,1749467464286,-1732.0,0.00030136,2]
[365108568,1749467464298,-480.0,0.00030136,2]
[365108569,1749467464308,-1848.92,0.00030136,2]
[365108570,1749467464317,-990.87,0.00030136,2]
[365108571,1749467464328,-586.59,0.00030136,2]
[365108572,1749467464339,-1356.93,0.00030136,2]
[365108573,1749467464350,-1000.0,0.00030136,2]
[365108574,1749467464359,-3717.07,0.00030136,2]
[365108575,1749467464370,-480.0,0.00030136,2]
[365108576,1749467464384,-772.28,0.00030136,2]
[365108577,1749467464395,-592.22645751,0.00030136,2]
[365108578,1749467464404,-606.5100188,0.00030136,2]
[365108579,1749467464415,-480.0,0.00030136,2]
[365108580,1749467464425,-480.0,0.00030136,2]
[365108581,1749467464435,-802.39,0.00030136,2]
[365108582,1749467464447,-583.65,0.00030136,2]
[365108583,1749467464458,-575.9,0.00030136,2]
[365108584,1749467464468,-480.0,0.00030136,2]
[365108585,1749467464478,-570.51,0.00030136,2]
[365108586,1749467464488,-3228.84,0.00030136,2]
[365108587,1749467464497,-784.8,0.00030136,2]
[365108588,1749467464506,-547.07,0.00030136,2]
[365108589,1749467464516,-763.27,0.00030136,2]
[365108590,1749467464525,-480.0,0.00030136,2]
[365108591,1749467464534,-480.0,0.00030136,2]
[365108592,1749467464543,-600.0,0.00030136,30]
[365108593,1749467464552,-480.0,0.00030136,2]
[365108594,1749467464562,-1534.26,0.00030136,2]
[365108595,1749467464571,-773.54,0.00030136,2]
[365108596,1749467464581,-223.97438381,0.00030136,2]
[365108597,1749467464591,-502.44,0.00030136,2]
[365108598,1749467464601,-480.0,0.00030136,2]
[365108599,1749467464610,-1170.03,0.00030136,2]
[365108600,1749467464619,-480.0,0.00030136,2]
[365108601,1749467464631,-3012.44,0.00030136,2]
[365108602,1749467464640,-480.0,0.00030136,2]
[365108603,1749467464649,-512.4,0.00030136,2]
[365108604,1749467464659,-480.0,0.00030136,2]
[365108605,1749467464668,-593.12881807,0.00030136,2]
[365108606,1749467464676,-1442.87,0.00030136,2]
[365108607,1749467464686,-1519.91,0.00030136,2]
[365108608,1749467464696,-480.0,0.00030136,2]
[365108609,1749467464706,-480.0,0.00030136,2]
[365108610,1749467464715,-480.0,0.00030136,2]
[365108611,1749467464725,-891.08,0.00030136,2]
[365108612,1749467464735,-480.0,0.00030136,2]
[365108613,1749467464745,-480.0,0.00030136,2]
[365108614,1749467464755,-480.0,0.00030136,2]
[365108615,1749467464765,-1678.45,0.00030136,2]
[365108616,1749467464775,-1398.24,0.00030136,2]
[365108617,1749467464785,-1165.26,0.00030136,2]
[365108618,1749467464795,-2319.82,0.00030136,2]
[365108619,1749467464806,-2517.22,0.00030136,2]
[365108620,1749467464816,-862.85,0.00030136,2]
[365108621,1749467464825,-7296.02679866,0.00030136,2]
[365108622,1749467465226,-1877.75,0.00030136,2]
[365108623,1749467465238,-13773.57320134,0.00030136,2]
[365108624,1749467465248,-187.28274546,0.00030136,2]
[365108625,1749467465592,-460.0,0.00021917,2]
[365108626,1749467465602,-1889.55,0.00024657,2]
[365108627,1749467465612,-480.0,0.00027397,2]
[365108628,1749467465622,-1037.40019455,0.00027397,2]
[365108629,1749467465635,-852.14980545,0.00027397,2]
[365108630,1749467465644,-347.07725454,0.00030136,2]
[365108631,1749467465654,-506.07,0.00030136,2]
[365108632,1749467465663,-1731.91,0.00030136,2]
[365108633,1749467465673,-945.9,0.00030136,2]
[365108634,1749467465682,-3651.45,0.00030136,2]
[365108635,1749467465691,-480.0,0.00030136,2]
[365108636,1749467465701,-1014.19,0.00030136,2]
[365108637,1749467465710,-480.0,0.00030136,2]
[365108638,1749467465720,-1143.4,0.00030136,2]
[365108639,1749467465729,-3119.95,0.00030136,2]
[365108640,1749467465739,-87.74557432,0.00030136,2]
[365108641,1749467465766,-392.25442568,0.00030136,2]
[365108642,1749467465776,-118.83023498,0.00030136,2]
[365108643,1749467465787,-838.24494006,0.00030136,2]
[365108644,1749467465799,-42.92482496,0.00030136,2]
[365108645,1749467465808,-1139.15,0.00030136,2]
[365108646,1749467465818,-554.28,0.00030136,2]
[365108647,1749467465827,-24.20332855,0.00030136,2]
[365108648,1749467465838,-773.72667145,0.00030136,2]
[365108649,1749467465848,-1412.46,0.00030136,2]
[365108650,1749467465858,-480.0,0.00030136,2]
[365108651,1749467465867,-1207.75,0.00030136,2]
[365108652,1749467465877,-809.74,0.00030136,2]
[365108653,1749467465886,-481.86817751,0.00030136,2]
[365108654,1749467465897,-312.60182249,0.00030136,2]
[365108655,1749467465907,-653.73328918,0.00030136,2]
[365108656,1749467465919,-101.62671082,0.00030136,2]
[365108657,1749467465928,-403.46364538,0.00030136,2]
[365108658,1749467465939,-1717.2,0.00030136,2]
[365108659,1749467465954,-457.90795028,0.00030136,2]
[365108660,1749467465965,-798.52623198,0.00030136,2]
[365108661,1749467465977,-263.9574886,0.00030136,2]
[365108662,1749467465992,-250.00000015,0.00030136,2]
[365108663,1749467466016,-540.65468361,0.00030136,2]
[365108664,1749467466026,-2023.34531639,0.00030136,2]
[365108665,1749467466050,-377.14468361,0.00030136,2]
[365108666,1749467466060,-1225.84,0.00030136,2]
[365108667,1749467466069,-480.0,0.00030136,2]
[365108668,1749467466079,-480.0,0.00030136,2]
[365108669,1749467466088,-2389.33,0.00030136,2]
[365108670,1749467466098,-461.63017082,0.00030136,2]
[365108671,1749467466107,-2500.85,0.00030136,2]
[365108672,1749467466117,-480.0,0.00030136,2]
[365108673,1749467466127,-8933.26,0.00030136,2]
[365108674,1749467466137,-480.0,0.00030136,2]
[365108675,1749467466147,-480.0,0.00030136,2]
[365108676,1749467466157,-1040.21,0.00030136,2]
[365108677,1749467466171,-1072.67,0.00030136,2]
[365108678,1749467466182,-480.0,0.00030136,2]
[365108679,1749467466192,-480.0,0.00030136,2]
[365108680,1749467466202,-673.54,0.00030136,2]
[365108681,1749467466212,-520.82,0.00030136,2]
[365108682,1749467466221,-480.0,0.00030136,2]
[365108683,1749467466231,-850.95,0.00030136,2]
[365108684,1749467466242,-456.96845147,0.00030136,2]
[365108685,1749467466252,-480.0,0.00030136,2]
[365108686,1749467466263,-1107.88,0.00030136,2]
[365108687,1749467466273,-6752.31,0.00030136,2]
[365108688,1749467466283,-480.0,0.00030136,2]
[365108689,1749467466293,-480.0,0.00030136,2]
[365108690,1749467466303,-607.72,0.00030136,2]
[365108691,1749467466313,-812.64,0.00030136,2]
[365108692,1749467466322,-3490.21,0.00030136,2]
[365108693,1749467466332,-480.0,0.00030136,2]
[365108694,1749467466341,-480.0,0.00030136,2]
[365108695,1749467466351,-917.72,0.00030136,2]
[365108696,1749467466361,-480.0,0.00030136,2]
[365108697,1749467466370,-2566.68,0.00030136,2]
[365108698,1749467466382,-1030.26,0.00030136,2]
[365108699,1749467466392,-213.83438102,0.00030136,2]
[365108700,1749467466402,-188.00754494,0.00030136,2]
[365108701,1749467466412,-1336.25,0.00030136,2]
[365108702,1749467466421,-1450.58,0.00030136,2]
[365108703,1749467466431,-519.85,0.00030136,2]
[365108704,1749467466442,-900.38,0.00030136,2]
[365108705,1749467466453,-1051.44,0.00030136,2]
[365108706,1749467466463,-1227.58,0.00030136,2]
[365108707,1749467466472,-3715.28,0.00030136,2]
[365108708,1749467466482,-480.0,0.00030136,2]
[365108709,1749467466491,-875.29,0.00030136,2]
[365108710,1749467466502,-1383.42,0.00030136,2]
[365108711,1749467466511,-480.0,0.00030136,2]
[365108712,1749467466521,-674.7,0.00030136,2]
[365108713,1749467466530,-3019.42,0.00030136,2]
[365108714,1749467466540,-480.0,0.00030136,2]
[365108715,1749467466550,-767.5,0.00030136,2]
[365108716,1749467466559,-2987.01,0.00030136,2]
[365108717,1749467466568,-872.18,0.00030136,2]
[365108718,1749467466577,-1344.66,0.00030136,2]
[365108719,1749467466587,-606.82,0.00030136,2]
[365108720,1749467466596,-1574.26,0.00030136,2]
[365108721,1749467466605,-607.38,0.00030136,2]
[365108722,1749467466615,-480.0,0.00030136,2]
[365108723,1749467466624,-735.84,0.00030136,2]
[365108724,1749467466634,-1442.46,0.00030136,2]
[365108725,1749467466643,-3563.25,0.00030136,2]
[365108726,1749467466654,-809.97,0.00030136,2]
[365108727,1749467466663,-618.8,0.00030136,2]
[365108728,1749467466672,-1263.55,0.00030136,2]
[365108729,1749467466684,-1058.49,0.00030136,2]
[365108730,1749467466693,-480.0,0.00030136,2]
[365108731,1749467466703,-480.0,0.00030136,2]
[365108732,1749467466713,-480.0,0.00030136,2]
[365108733,1749467466722,-530.38,0.00030136,2]
[365108734,1749467466733,-1223.63,0.00030136,2]
[365108735,1749467466743,-480.0,0.00030136,2]
[365108736,1749467466752,-1146.91,0.00030136,2]
[365108737,1749467466762,-1285.75,0.00030136,2]
[365108738,1749467466772,-480.0,0.00030136,2]
[365108739,1749467466782,-942.47,0.00030136,2]
[365108740,1749467466793,-1980.86,0.00030136,2]
[365108741,1749467466804,-485.07,0.00030136,2]
[365108742,1749467466814,-497.88849559,0.00030136,10]
[365108743,1749467466824,-1095.79,0.00030136,2]
[365108744,1749467466835,-497.05,0.00030136,2]
[365108745,1749467466844,-1708.15,0.00030136,2]
[365108746,1749467466853,-807.4,0.00030136,2]
[365108747,1749467466863,-1444.88,0.00030136,2]
[365108748,1749467466873,-1048.6717817,0.00030136,2]
[365108749,1749467466892,-264.3382183,0.00030136,2]
[365108750,1749467466902,-1682.67,0.00030136,2]
[365108751,1749467466912,-237.36144595,0.00030136,2]
[365108752,1749467466922,-480.0,0.00030136,2]
[365108753,1749467466931,-2278.58,0.00030136,2]
[365108754,1749467466941,-649.98856074,0.00030136,2]
[365108755,1749467466954,-362.82472413,0.00030136,2]
[365108756,1749467467353,-805.22671513,0.00030136,2]
[365108757,1749467467364,-480.0,0.00030136,2]
[365108758,1749467467374,-480.0,0.00030136,2]
[365108759,1749467467384,-486.06481359,0.00030136,2]
[365108760,1749467467395,-536.59,0.00030136,2]
[365108761,1749467467405,-975.65,0.00030136,2]
[365108762,1749467467415,-731.9,0.00030136,2]
[365108763,1749467467425,-480.0,0.00030136,2]
[365108764,1749467467436,-510.45,0.00030136,2]
[365108765,1749467467445,-164.35550916,0.00030136,2]
[365108766,1749467467458,-315.64449084,0.00030136,2]
[365108767,1749467467468,-705.59,0.00030136,2]
[365108768,1749467467477,-1698.66,0.00030136,2]
[365108769,1749467467487,-480.0,0.00030136,2]
[365108770,1749467467497,-657.35,0.00030136,2]
[365108771,1749467467507,-887.04,0.00030136,2]
[365108772,1749467467517,-507.54,0.00030136,2]
[365108773,1749467467527,-574.68,0.00030136,2]
[365108774,1749467467538,-490.81,0.00030136,2]
[365108775,1749467467547,-646.2,0.00030136,2]
[365108776,1749467467556,-480.0,0.00030136,2]
[365108777,1749467467565,-2133.36,0.00030136,2]
[365108778,1749467467573,-480.0,0.00030136,2]
[365108779,1749467467582,-3929.33,0.00030136,2]
[365108780,1749467467590,-1202.3,0.00030136,2]
[365108781,1749467467599,-823.05,0.00030136,2]
[365108782,1749467467609,-1235.84,0.00030136,2]
[365108783,1749467467619,-573.71,0.00030136,2]
[365108784,1749467467630,-480.0,0.00030136,2]
[365108785,1749467467640,-500.0,0.00030136,2]
[365108786,1749467467651,-1357.69,0.00030136,2]
[365108787,1749467467661,-2452.83,0.00030136,2]
[365108788,1749467467671,-1822.6,0.00030136,2]
[365108789,1749467467681,-1908.91,0.00030136,2]
[365108790,1749467467691,-683.03,0.00030136,2]
[365108791,1749467467701,-480.0,0.00030136,2]
[365108792,1749467467711,-897.53,0.00030136,2]
[365108793,1749467467721,-480.0,0.00030136,2]
[365108794,1749467467730,-1705.95,0.00030136,2]
[365108795,1749467467740,-480.0,0.00030136,2]
[365108796,1749467467751,-558.25,0.00030136,2]
[365108797,1749467467760,-480.0,0.00030136,2]
[365108798,1749467467770,-767.98,0.00030136,2]
[365108799,1749467467780,-774.8,0.00030136,2]
[365108800,1749467467790,-480.0,0.00030136,2]
[365108801,1749467467800,-2089.01,0.00030136,2]
[365108802,1749467467810,-1397.47,0.00030136,2]
[365108803,1749467467819,-931.16,0.00030136,2]
[365108804,1749467467829,-480.0,0.00030136,2]
[365108805,1749467467838,-1599.14,0.00030136,2]
[365108806,1749467467849,-761.61,0.00030136,2]
[365108807,1749467467858,-633.28,0.00030136,2]
[365108808,1749467467868,-644.0,0.00030136,2]
[365108809,1749467467878,-877.16,0.00030136,2]
[365108810,1749467467888,-480.0,0.00030136,2]
[365108811,1749467467899,-774.21,0.00030136,2]
[365108812,1749467467908,-1493.93,0.00030136,2]
[365108813,1749467467926,-554.92,0.00030136,2]
[365108814,1749467467936,-528.04,0.00030136,2]
[365108815,1749467467945,-480.0,0.00030136,2]
[365108816,1749467467955,-654.96,0.00030136,2]
[365108817,1749467467965,-1337.67,0.00030136,2]
[365108818,1749467467974,-1222.29,0.00030136,2]
[365108819,1749467467984,-512.36156084,0.00030136,2]
[365108820,1749467467994,-480.0,0.00030136,2]
[365108821,1749467468003,-480.0,0.00030136,2]
[365108822,1749467468014,-1409.83,0.00030136,2]
[365108823,1749467468023,-559.11,0.00030136,2]
[365108824,1749467468033,-701.79,0.00030136,2]
[365108825,1749467468043,-717.62,0.00030136,2]
[365108826,1749467468053,-957.18,0.00030136,2]
[365108827,1749467468063,-922.55,0.00030136,2]
[365108828,1749467468073,-480.0,0.00030136,2]
[365108829,1749467468083,-1889.55,0.00030136,2]
[365108830,1749467468092,-600.0,0.00030137,2]
[365108831,1749467468101,-300.0,0.00030137,80]
[365108832,1749467468111,-833.29909032,0.000302,3]
[365108833,1749467468120,-99184.0690129,0.000302,7]
[365108834,1749467468133,-431.48662414,0.000302,7]
[365108835,1749467468152,-3252.56752375,0.000302,7]
[365108836,1749467468168,-50651.01683921,0.000302,7]
[365108837,1749467468178,-351.61,0.00030279,2]
[365108838,1749467468188,-150.0,0.00030281,2]
[365108839,1749467468198,-2000.0,0.00030299,2]
[365108840,1749467468209,-708.19,0.000303,31]
[365108841,1749467468219,-708.19,0.000303,31]
[365108842,1749467468229,-708.19,0.000303,31]
[365108843,1749467468239,-708.19,0.000303,31]
[365108844,1749467468249,-708.19,0.000303,31]
[365108845,1749467468259,-708.19,0.000303,31]
[365108846,1749467468268,-708.19,0.000303,31]
[365108847,1749467468278,-708.19,0.000303,31]
[365108848,1749467468288,-708.19,0.000303,31]
[365108849,1749467468298,-708.19,0.000303,31]
[365108850,1749467468308,-708.19,0.000303,31]
[365108851,1749467468318,-708.19,0.000303,31]
[365108852,1749467468328,-708.19,0.000303,31]
[365108853,1749467468338,-708.19,0.000303,31]
[365108854,1749467468348,-708.19,0.000303,31]
[365108855,1749467468359,-708.19,0.000303,31]
[365108856,1749467468369,-708.19,0.000303,31]
[365108857,1749467468379,-708.19,0.000303,31]
[365108858,1749467468389,-708.19,0.000303,31]
[365108859,1749467468399,-708.19,0.000303,31]
[365108860,1749467468409,-708.19,0.000303,31]
[365108861,1749467468418,-708.19,0.000303,31]
[365108862,1749467468428,-708.19,0.000303,31]
[365108863,1749467468438,-708.19,0.000303,31]
[365108864,1749467468448,-4000.0,0.00030406,4]
[365108865,1749467468458,-2000.0,0.00030476,60]
[365108866,1749467468468,-550.508499,0.00030476,120]
[365108867,1749467468478,-500.0,0.00030476,120]
[365108868,1749467468487,-1333.0,0.00030575,21]
[365108869,1749467468497,-500.0,0.00030821,3]
[365108870,1749467468507,-50000.0,0.00031,21]
[365108871,1749467468517,-300.0,0.00031,2]
[365108872,1749467468527,-833.29909032,0.00031,7]
[365108873,1749467468537,-150.0,0.00031002,2]
[365108874,1749467468547,-1036.70095268,0.0003126,2]